bitfinex-derivatives/quotes_BNBF0:USTF0_20250810
["timestamp","ask_amount","ask_price","bid_price","bid_amount"]
[1754796333735,0.21396293,814.35,812.97,0.9161615]
[1754796333943,0.21396293,814.35,812.98,0.9161615]
[1754796334143,0.21396293,814.35,812.99,0.9161615]
[1754796334344,0.21396293,814.35,813.0,0.9161615]
[1754796334545,0.21396293,814.35,813.01,0.9161615]
[1754796334745,0.21396293,814.35,813.02,0.9161615]
[1754796334941,0.21396293,814.35,813.03,0.9161615]
[1754796335146,0.21396293,814.35,813.04,0.9161615]
[1754796335447,0.21396293,814.35,813.05,0.9161615]
[1754796335638,0.21396293,814.35,813.06,0.9161615]
[1754796335843,0.21396293,814.35,813.07,0.9161615]
[1754796336045,0.21396293,814.35,813.08,0.9161615]
[1754796336242,0.21396293,814.35,813.09,0.9161615]
[1754796336446,0.21396293,814.35,813.1,0.9161615]
[1754796336646,0.21396293,814.35,813.11,0.9161615]
[1754796336846,0.21396293,814.35,813.12,0.9161615]
[1754796337047,0.21396293,814.35,813.13,0.9161615]
[1754796337342,0.21396293,814.35,813.14,0.9161615]
[1754796337548,0.21396293,814.35,813.15,0.9161615]
[1754796337843,0.21396293,814.35,813.16,0.9161615]
[1754796338042,0.21396293,814.35,813.17,0.9161615]
[1754796338247,0.21396293,814.35,813.18,0.9161615]
[1754796338445,0.21396293,814.35,813.19,0.9161615]
[1754796338748,0.21396293,814.35,813.2,0.9161615]
[1754796338950,0.21396293,814.35,813.21,0.9161615]
[1754796339248,0.21396293,814.35,813.22,0.9161615]
[1754796339545,0.21396293,814.35,813.23,0.9161615]
[1754796339749,0.21396293,814.35,812.99,1.388]
[1754796339949,0.21396293,814.35,813.0,0.91914796]
[1754796340146,0.21396293,814.35,813.01,0.91914796]
[1754796340344,0.21396293,814.35,813.02,0.91914796]
[1754796340649,0.21396293,814.35,813.03,0.91914796]
[1754796340950,0.21396293,814.35,813.04,0.91914796]
[1754796341248,0.21396293,814.35,812.99,1.388]
[1754796341249,0.21396293,814.35,813.05,0.91914796]
[1754796341449,0.21396293,814.35,813.06,0.91914796]
[1754796341748,0.21396293,814.35,813.07,0.91914796]
[1754796342049,0.21396293,814.35,813.08,0.91914796]
[1754796342250,0.21396293,814.35,813.09,0.91914796]
[1754796342450,0.21396293,814.35,813.1,0.91914796]
[1754796342654,0.21396293,814.35,813.11,0.91914796]
[1754796342950,0.21396293,814.35,813.12,0.91914796]
[1754796343150,0.21396293,814.35,813.13,0.91914796]
[1754796343447,0.21396293,814.35,813.14,0.91914796]
[1754796343650,0.21396293,814.35,813.15,0.91914796]
[1754796343947,0.8186713,815.42,813.16,0.91914796]
[1754796344145,0.21389651,814.47,813.17,0.91914796]
[1754796344350,0.5,814.93,813.18,0.91914796]
[1754796344649,0.21389125,814.47,813.19,0.91914796]
[1754796344849,0.21389125,814.47,813.2,0.91914796]
[1754796345047,0.21389125,814.47,813.21,0.91914796]
[1754796345248,0.21389125,814.47,813.22,0.91914796]
[1754796345447,0.21389125,814.47,813.23,0.91914796]
[1754796345649,0.21389125,814.47,813.24,0.91914796]
[1754796345850,0.21389125,814.47,812.99,1.388]
[1754796346050,0.21389125,814.47,813.0,0.92010206]
[1754796346252,0.21389125,814.47,813.01,0.92010206]
[1754796346452,0.21389125,814.47,813.02,0.92010206]
[1754796346648,0.21389125,814.47,813.03,0.92010206]
[1754796346848,0.21389125,814.47,813.04,0.92010206]
[1754796347148,0.21389125,814.47,813.05,0.92010206]
[1754796347446,0.21389125,814.47,813.06,0.92010206]
[1754796347647,0.21389125,814.47,813.07,0.92010206]
[1754796347853,0.21389125,814.47,813.08,0.92010206]
[1754796348053,0.21389125,814.47,813.09,0.92010206]
[1754796348252,0.21389125,814.47,813.1,0.92010206]
[1754796348450,0.21389125,814.47,813.11,0.92010206]
[1754796348648,0.21389125,814.47,812.99,4.13652257]
[1754796348851,0.21389125,814.47,813.0,0.92065786]
[1754796349053,0.21389125,814.47,813.01,0.92065786]
[1754796349252,0.21389125,814.47,813.02,0.92065786]
[1754796349452,0.21389125,814.47,813.14,2.74852257]
[1754796350049,0.21389125,814.47,812.99,1.388]
[1754796350254,0.21389125,814.47,813.0,0.92115449]
[1754796350550,0.21389125,814.47,813.01,0.92115449]
[1754796350754,0.21389125,814.47,812.99,4.13652257]
[1754796350755,0.21389125,814.47,813.02,0.92115449]
[1754796350953,0.21389125,814.47,813.03,0.92115449]
[1754796351154,0.21389125,814.47,813.04,0.92115449]
[1754796351353,0.21389125,814.47,813.05,0.92115449]
[1754796351551,0.21389125,814.47,813.06,0.92115449]
[1754796351851,0.21389125,814.47,813.07,0.92115449]
[1754796352057,0.21389125,814.47,813.08,0.92115449]
[1754796352251,0.21389125,814.47,813.09,0.92115449]
[1754796352451,0.21389125,814.47,813.01,2.74852257]
[1754796352656,0.21389125,814.47,813.18,2.74852257]
[1754796353256,0.21389125,814.47,813.25,2.74852257]
[1754796354155,0.21389125,814.47,813.33,2.74852257]
[1754796354655,0.21389125,814.47,813.3,2.74852257]
[1754796355355,0.21389125,814.47,813.25,2.74852257]
[1754796355853,0.21389125,814.47,813.32,2.74852257]
[1754796356352,0.21389125,814.47,813.09,2.74852257]
[1754796356856,0.21389125,814.47,813.13,2.74852257]
[1754796357256,0.21389125,814.47,813.17,2.74852257]
[1754796357753,0.21389125,814.47,813.2,2.74852257]
[1754796358454,0.21389125,814.47,813.21,2.74852257]
[1754796358952,0.21389125,814.47,812.83,3.85178554]
[1754796358953,0.21389125,814.47,813.18,2.74852257]
[1754796359458,0.21389125,814.47,813.04,2.74852257]
[1754796359957,0.21389125,814.47,812.97,2.74852257]
[1754796360458,0.21389125,814.47,812.92,2.74852257]
[1754796361560,0.21389125,814.47,813.07,2.74852257]
[1754796362059,0.21389125,814.47,812.95,2.74852257]
[1754796363161,0.21389125,814.47,812.94,2.74852257]
[1754796365562,0.21389125,814.47,812.96,2.74852257]
[1754796366160,0.21389125,814.47,812.98,2.74852257]
[1754796367261,0.21389125,814.47,813.0,2.74852257]
[1754796367864,0.21389125,814.47,813.04,2.74852257]
[1754796368264,0.21389125,814.47,812.85,1.198]
[1754796368265,0.21389125,814.47,812.88,2.74852257]
[1754796368862,0.21389125,814.47,812.89,0.92578304]
[1754796369164,0.21389125,814.47,812.9,0.92578304]
[1754796369364,0.21389125,814.47,813.03,2.74852257]
[1754796370866,0.21389125,814.47,813.13,2.74852257]
[1754796371366,0.21389125,814.47,813.08,2.74852257]
[1754796373467,0.21389125,814.47,813.07,2.74852257]
[1754796373963,0.21389125,814.47,813.05,2.74852257]
[1754796374462,0.21389125,814.47,812.99,2.74852257]
[1754796376660,0.21389125,814.47,812.97,2.74852257]
[1754796377363,0.21389125,814.47,812.99,2.74852257]
[1754796377570,0.21389125,814.47,813.0,0.9251467]
[1754796377767,0.21389125,814.47,813.05,2.74852257]
[1754796378161,0.21389125,814.47,813.0,2.74852257]
[1754796378666,0.5,814.88,814.3,1.63438269]
[1754796378868,0.21389651,814.57,814.23,1.63438269]
[1754796379068,0.21389651,814.57,814.21,1.63438269]
[1754796379366,0.2137927,814.77,814.1,1.63438269]
[1754796379569,0.2137927,814.77,814.11,1.63438269]
[1754796379764,0.2137927,814.77,814.16,1.63438269]
[1754796380265,0.2137927,814.77,814.11,1.63438269]
[1754796380466,0.2137927,814.77,813.18,2.74852257]
[1754796380467,0.2137927,814.77,814.1,1.63438269]
[1754796380965,0.2137927,814.77,814.09,1.63438269]
[1754796381163,0.2137927,814.77,814.06,1.63438269]
[1754796381366,0.2137927,814.77,814.08,1.63438269]
[1754796381771,0.2137927,814.77,814.1,1.63438269]
[1754796381970,0.2137927,814.77,814.13,1.63438269]
[1754796382270,0.2137927,814.77,814.1,1.63438269]
[1754796382666,0.2137927,814.77,814.17,1.63438269]
[1754796382866,0.2137927,814.77,813.16,2.74852257]
[1754796382867,0.2137927,814.77,814.04,1.63438269]
[1754796383067,0.2137927,814.77,814.16,1.63438269]
[1754796383266,0.2137927,814.77,814.17,1.63438269]
[1754796383470,0.2137927,814.77,813.87,1.63438269]
[1754796383670,0.2137927,814.77,813.6,1.63438269]
[1754796383966,0.21385051,814.55,813.6,1.63438269]
[1754796384670,0.21385051,814.55,813.61,1.63438269]
[1754796384872,0.21385051,814.55,813.62,1.63438269]
[1754796385167,0.21385051,814.55,813.65,1.63438269]
[1754796385372,0.21385051,814.55,813.67,1.63438269]
[1754796385570,0.21385051,814.55,813.73,1.63438269]
[1754796385774,0.21385051,814.55,813.74,1.63438269]
[1754796385975,0.21385051,814.55,813.77,1.63438269]
[1754796386176,0.21385051,814.55,813.64,1.63438269]
[1754796386476,0.21385051,814.55,813.51,1.63438269]
[1754796386677,0.21385051,814.55,813.57,1.63438269]
[1754796386976,0.21385051,814.55,813.5,1.63438269]
[1754796387771,0.21385051,814.55,813.47,1.63438269]
[1754796388276,0.21385051,814.55,813.46,1.63438269]
[1754796388477,0.77588539,814.54,813.39,1.63438269]
[1754796388671,0.77588539,814.53,813.22,1.63438269]
[1754796388876,0.77588539,814.52,813.24,1.63438269]
[1754796389076,0.77588539,814.51,813.24,1.63438269]
[1754796389278,0.77588539,814.5,813.16,1.63438269]
[1754796389474,0.77588539,814.49,813.17,1.63438269]
[1754796389680,0.77588539,814.48,813.17,1.63438269]
[1754796389878,0.77588539,814.47,813.17,1.63438269]
[1754796390077,0.21385051,814.55,813.52,1.09045776]
[1754796390281,0.21385051,814.55,813.61,1.09045776]
[1754796390582,0.21385051,814.55,813.68,1.09045776]
[1754796390781,0.21385051,814.55,813.69,1.09045776]
[1754796390980,0.21385051,814.55,813.72,1.09045776]
[1754796391385,0.21385051,814.55,813.78,1.09045776]
[1754796391584,0.21385051,814.55,813.86,1.09045776]
[1754796391783,0.21385051,814.55,813.89,1.09045776]
[1754796391982,0.21385051,814.55,813.91,1.09045776]
[1754796392184,0.21385051,814.55,813.9,1.09045776]
[1754796392381,0.21385051,814.55,813.93,1.09045776]
[1754796392778,0.21385051,814.55,813.92,1.09045776]
[1754796392982,0.21385051,814.55,813.91,1.09045776]
[1754796393186,0.21385051,814.55,813.88,1.09045776]
[1754796393384,0.21385051,814.55,813.84,1.09045776]
[1754796393582,0.21385051,814.55,813.89,1.09045776]
[1754796393784,0.21385051,814.55,813.88,1.09045776]
[1754796394088,0.21385051,814.55,813.63,1.09045776]
[1754796394383,0.21385051,814.55,812.9,5.38578554]
[1754796394384,0.21385051,814.55,813.64,1.09045776]
[1754796394584,0.21385051,814.55,813.63,1.09045776]
[1754796394984,0.21385051,814.55,813.6,1.09045776]
[1754796395186,0.21385051,814.55,813.55,1.09045776]
[1754796395384,0.21385051,814.55,813.5,1.09045776]
[1754796395586,0.21385051,814.55,812.9,1.534]
[1754796395587,0.21385051,814.55,813.52,1.09045776]
[1754796395789,0.21385051,814.55,813.43,1.09045776]
[1754796396185,0.21385051,814.55,813.35,1.09045776]
[1754796396388,0.21385051,814.55,812.9,1.534]
[1754796396389,0.21385051,814.55,813.31,1.09045776]
[1754796396989,0.21385051,814.55,813.3,1.09045776]
[1754796397490,0.21385051,814.55,813.25,1.09045776]
[1754796397693,0.21385051,814.55,813.24,1.09045776]
[1754796397994,0.82779354,814.48,813.16,1.09045776]
[1754796398292,0.82779354,814.49,813.12,1.09045776]
[1754796398993,0.82779354,814.48,813.13,1.09045776]
[1754796399192,0.82779354,814.28,812.9,1.534]
[1754796400293,0.82779354,814.29,812.9,1.534]
[1754796400492,0.82779354,814.31,812.9,1.534]
[1754796400693,0.82779354,814.29,812.9,2.62445776]
[1754796400893,0.82779354,814.2,812.9,1.534]
[1754796401394,0.82779354,814.15,812.6,1.09045776]
[1754796401692,0.82779354,814.11,812.56,1.09045776]
[1754796402089,0.82779354,814.08,812.41,1.09045776]
[1754796402295,0.82779354,813.97,812.23,1.09045776]
[1754796402494,1.10577159,814.17,811.2,2.74852257]
[1754796402495,0.82779354,813.98,812.26,1.09045776]
[1754796402794,0.82779354,813.99,812.3,1.09045776]
[1754796402992,0.82779354,814.01,812.32,1.09045776]
[1754796403196,0.82779354,814.03,812.27,1.09045776]
[1754796403497,0.82779354,814.05,812.29,1.09045776]
[1754796403700,0.82779354,814.08,812.32,1.09045776]
[1754796404093,0.82779354,814.12,812.36,1.09045776]
[1754796404292,0.82779354,814.15,812.29,1.09045776]
[1754796404993,0.82779354,814.17,812.31,1.09045776]
[1754796405194,0.82779354,814.14,812.4,1.09045776]
[1754796405396,0.21385051,814.55,812.41,1.09045776]
[1754796405397,0.82779354,814.21,812.41,1.09045776]
[1754796406293,0.82779354,814.21,812.39,1.09045776]
[1754796406893,0.82779354,814.21,812.38,1.09045776]
[1754796407295,0.82779354,814.15,812.35,1.09045776]
[1754796407499,0.82779354,814.15,812.36,1.09045776]
[1754796407699,0.82779354,814.16,812.36,1.09045776]
[1754796407899,0.82779354,814.15,812.36,1.09045776]
[1754796408195,0.82779354,814.14,812.36,1.09045776]
[1754796408397,0.82779354,814.15,812.32,1.09045776]
[1754796408593,0.82779354,814.1,812.28,1.09045776]
[1754796408798,0.82779354,814.05,812.24,1.09045776]
[1754796408998,0.82779354,814.04,812.24,1.09045776]
[1754796409198,0.82779354,814.27,812.46,1.09045776]
[1754796409398,0.82779354,814.29,812.44,1.09045776]
[1754796409801,0.82779354,814.3,812.45,1.09045776]
[1754796410099,0.82779354,814.29,812.44,1.09045776]
[1754796410300,0.82779354,814.3,812.43,1.09045776]
[1754796410598,0.82779354,814.31,812.42,1.09045776]
[1754796410797,0.82779354,814.4,812.51,1.09045776]
[1754796411103,0.82779354,814.41,812.52,1.09045776]
[1754796411297,0.82779354,814.48,812.57,1.09045776]
[1754796411496,0.82779354,814.46,812.55,1.09045776]
[1754796412001,0.82779354,814.43,812.53,1.09045776]
[1754796412295,0.21385051,814.55,811.85,1.15]
[1754796412296,0.82779354,814.47,812.34,1.09045776]
[1754796412701,0.82779354,814.49,812.36,1.09045776]
[1754796412900,0.82779354,814.5,812.36,1.09045776]
[1754796413100,0.82779354,814.49,812.36,1.09045776]
[1754796413301,0.82779354,814.44,812.27,1.09045776]
[1754796413596,0.82779354,814.38,812.19,1.09045776]
[1754796413801,0.82779354,814.3,812.26,1.09045776]
[1754796413999,0.82779354,814.25,812.14,1.09045776]
[1754796414200,0.82779354,814.22,812.07,1.09045776]
[1754796414399,0.82779354,814.23,812.07,1.09045776]
[1754796414599,0.82779354,814.25,812.09,1.09045776]
[1754796414801,0.82779354,814.25,812.08,1.09045776]
[1754796415505,0.82779354,814.25,812.06,1.09045776]
[1754796416203,0.82779354,814.27,812.04,1.09045776]
[1754796416402,0.82779354,814.27,812.05,1.09045776]
[1754796416804,0.82779354,814.27,812.04,1.09045776]
[1754796417309,0.82779354,814.31,811.85,1.15]
[1754796417507,0.82779354,814.26,811.85,1.15]
[1754796418405,0.82779354,814.23,811.85,1.15]
[1754796418810,0.82779354,814.03,811.93,1.09045776]
[1754796419008,0.82779354,813.99,811.87,1.09045776]
[1754796419210,0.82779354,813.98,811.85,1.15]
[1754796419912,0.82779354,813.99,811.85,1.15]
[1754796420114,0.82779354,813.82,811.85,1.15]
[1754796420308,0.82779354,813.79,811.85,1.15]
[1754796420608,0.82779354,813.71,811.85,1.15]
[1754796420814,0.76113248,813.7,811.85,1.15]
[1754796421013,0.82779354,813.72,811.85,1.15]
[1754796421014,0.76113248,813.69,811.85,1.15]
[1754796421216,0.76113248,813.68,811.85,1.15]
[1754796421413,0.76113248,813.67,811.85,1.15]
[1754796421609,0.76113248,813.66,811.85,1.15]
[1754796421815,0.76113248,813.65,811.85,1.15]
[1754796422116,0.76113248,813.64,811.85,1.15]
[1754796422311,0.76113248,813.63,811.85,1.15]
[1754796422514,0.82779354,813.96,811.85,1.15]
[1754796422515,0.76113248,813.62,811.85,1.15]
[1754796422811,0.76113248,813.61,811.85,1.15]
[1754796423010,0.76113248,813.6,811.85,1.15]
[1754796423213,0.76113248,813.59,811.85,1.15]
[1754796423416,0.76113248,813.58,811.85,1.15]
[1754796423611,0.76113248,813.57,811.85,1.15]
[1754796423817,0.76113248,813.56,811.85,1.15]
[1754796424017,0.76113248,813.55,811.85,1.15]
[1754796424216,0.76113248,813.54,811.85,1.15]
[1754796424517,0.76113248,813.53,811.85,1.15]
[1754796424714,0.76113248,813.52,811.85,1.15]
[1754796424915,0.76113248,813.51,811.85,1.15]
[1754796425112,0.82779354,813.86,811.85,1.15]
[1754796425313,0.75947319,813.85,811.85,1.15]
[1754796425514,0.75947319,813.84,811.85,1.15]
[1754796425815,0.75947319,813.83,811.85,1.15]
[1754796426013,0.75947319,813.82,811.85,1.15]
[1754796426217,0.75947319,813.81,811.85,1.15]
[1754796426513,0.75947319,813.8,811.85,1.15]
[1754796426718,0.75947319,813.79,811.85,1.15]
[1754796426922,0.82779354,813.77,811.85,1.15]
[1754796427121,0.75947319,813.76,811.85,1.15]
[1754796427318,0.21385051,814.55,811.85,1.15]
[1754796427319,0.75947319,813.75,811.85,1.15]
[1754796427519,0.75947319,813.74,811.85,1.15]
[1754796427818,0.75947319,813.73,811.85,1.15]
[1754796428018,0.75947319,813.72,811.85,1.15]
[1754796428218,0.75947319,813.71,811.85,1.15]
[1754796428418,0.75947319,813.7,811.85,1.15]
[1754796428612,0.75947319,813.69,811.85,1.15]
[1754796428816,0.75947319,813.68,811.85,1.15]
[1754796429018,0.75947319,813.67,811.85,1.15]
[1754796429216,0.75947319,813.66,811.85,1.15]
[1754796429414,0.75947319,813.65,811.85,1.15]
[1754796429615,0.21385051,814.55,811.85,1.15]
[1754796429616,0.82779354,813.99,811.85,1.15]
[1754796429816,1.5856818,813.98,811.85,1.15]
[1754796430015,0.75788826,813.97,811.85,1.15]
[1754796430216,0.75788826,813.96,811.85,1.15]
[1754796430517,0.75788826,813.95,811.85,1.15]
[1754796430721,0.75788826,813.94,811.85,1.15]
[1754796430919,0.75788826,813.93,811.85,1.15]
[1754796431120,0.82779354,814.24,811.85,1.15]
[1754796431317,0.7575632,814.23,811.85,1.15]
[1754796431616,0.7575632,814.22,811.85,1.15]
[1754796431820,0.21385051,814.55,811.85,1.15]
[1754796432021,0.75735968,814.54,811.85,1.15]
[1754796432222,0.75735968,814.53,811.85,1.15]
[1754796432519,0.75735968,814.52,811.85,1.15]
[1754796432722,0.75735968,814.51,811.85,1.15]
[1754796432919,0.75735968,814.5,811.85,1.15]
[1754796433122,0.21385051,814.55,811.85,1.15]
[1754796433123,0.75735968,814.49,811.85,1.15]
[1754796433418,0.75735968,814.48,811.85,1.15]
[1754796433623,0.21385051,814.55,811.97,1.63438269]
[1754796433823,0.21385051,814.55,811.96,1.63438269]
[1754796434024,0.21385051,814.55,811.92,1.63438269]
[1754796434225,0.21385051,814.55,811.93,0.91346292]
[1754796434424,0.21385051,814.55,811.94,0.91346292]
[1754796434623,0.21385051,814.55,811.93,1.63438269]
[1754796434825,0.21385051,814.55,811.94,0.91364502]
[1754796435025,0.75756735,814.54,811.93,1.63438269]
[1754796435220,0.21385051,814.55,811.85,1.15]
[1754796435221,0.21385051,814.55,811.94,0.91367442]
[1754796435421,0.75772175,814.54,811.93,1.63438269]
[1754796435619,0.75772175,814.53,811.94,0.91386113]
[1754796435818,0.75772982,814.52,811.95,0.9138642]
[1754796436024,0.21385051,814.55,811.9,1.63438269]
[1754796436225,0.75773253,814.54,811.65,1.63438269]
[1754796436523,0.21385051,814.55,810.97,0.21430749]
[1754796436524,0.75773253,814.53,811.76,1.63438269]
[1754796436724,0.75773253,814.52,811.76,1.63438269]
[1754796437019,0.75773253,814.51,811.77,1.63438269]
[1754796437220,0.75773253,814.5,811.77,1.63438269]
[1754796437423,0.75773253,814.49,811.77,1.63438269]
[1754796437623,0.21385051,814.55,810.97,0.21430749]
[1754796437624,0.75773253,814.48,811.79,1.63438269]
[1754796437924,0.21385051,814.55,810.97,0.21430749]
[1754796437925,0.82779354,814.39,811.81,1.63438269]
[1754796438125,0.82779354,814.32,811.8,1.347]
[1754796438425,0.82779354,814.3,811.8,1.347]
[1754796438724,0.75773253,814.29,811.8,1.347]
[1754796439425,0.82779354,814.25,811.8,1.347]
[1754796439726,0.82779354,814.18,811.83,1.63438269]
[1754796440025,0.75773253,814.17,811.83,1.63438269]
[1754796440227,0.82779354,814.09,811.8,1.347]
[1754796440421,0.82779354,814.05,811.8,1.347]
[1754796440623,0.82779354,813.98,811.8,1.347]
[1754796440823,0.75773253,813.97,811.8,1.347]
[1754796441024,0.82779354,813.94,811.8,1.347]
[1754796441323,0.82779354,813.9,811.8,1.347]
[1754796441627,0.75773253,813.89,811.8,1.347]
[1754796441827,0.75773253,813.88,811.8,1.347]
[1754796442024,0.75773253,813.87,811.8,1.347]
[1754796442225,0.75773253,813.86,811.8,1.347]
[1754796442428,0.75773253,813.85,811.8,1.347]
[1754796442628,0.75773253,813.84,811.8,1.347]
[1754796442828,0.75773253,813.83,811.8,1.347]
[1754796443129,0.75773253,813.82,811.8,1.347]
[1754796443429,0.75773253,813.81,811.8,1.347]
[1754796443624,0.82779354,813.73,811.8,1.347]
[1754796443928,0.82779354,813.66,811.8,1.347]
[1754796444130,0.82779354,813.57,811.8,1.347]
[1754796444325,0.75773253,813.56,811.8,1.347]
[1754796444531,0.82779354,813.51,811.8,1.347]
[1754796444733,0.82779354,813.49,811.8,1.347]
[1754796444925,0.75773253,813.48,811.8,1.347]
[1754796445330,0.75773253,813.47,811.8,1.347]
[1754796445532,0.75773253,813.46,811.8,1.347]
[1754796445731,0.82779354,813.42,811.8,1.347]
[1754796446027,1.66961012,813.74,811.8,1.347]
[1754796446028,0.75773253,813.41,811.8,1.347]
[1754796446331,0.75773253,813.4,810.81,1.63438269]
[1754796446529,1.58552607,813.39,810.79,1.63438269]
[1754796446726,0.75773253,813.38,810.8,0.92257635]
[1754796447024,0.82779354,813.27,810.94,1.63438269]
[1754796447225,2.78268353,814.87,810.62,0.21444813]
[1754796447226,1.58552607,813.26,810.95,1.63438269]
[1754796447426,0.75773253,813.25,810.9,1.63438269]
[1754796447629,0.75773253,813.24,810.75,1.63438269]
[1754796447828,0.82779354,813.11,810.55,1.63438269]
[1754796448026,0.75773253,813.1,810.55,1.63438269]
[1754796448231,1.58552607,813.1,810.55,1.63438269]
[1754796448432,0.75773253,813.09,810.52,1.63438269]
[1754796448632,0.75773253,813.08,810.5,1.63438269]
[1754796448838,0.75773253,813.07,810.5,1.63438269]
[1754796449128,0.75773253,813.06,810.49,1.63438269]
[1754796449334,0.82779354,812.99,810.49,1.63438269]
[1754796449530,0.75773253,812.98,810.39,0.21448713]
[1754796449729,0.75773253,812.98,808.44,5.50255077]
[1754796449730,0.82779354,812.75,810.5,0.976]
[1754796450032,0.75773253,812.74,810.5,0.976]
[1754796450232,0.82779354,812.7,810.5,0.976]
[1754796450428,0.75773253,812.69,810.5,0.976]
[1754796450733,0.75773253,812.68,810.5,0.976]
[1754796450934,0.75773253,812.67,810.5,0.976]
[1754796451630,0.82779354,812.65,810.5,0.976]
[1754796451835,0.82779354,812.63,810.5,0.976]
[1754796452033,1.58552607,812.62,810.5,0.976]
[1754796452235,0.82779354,812.52,810.5,0.976]
[1754796452433,0.75773253,812.51,810.5,0.976]
[1754796452738,0.82779354,812.48,810.5,0.976]
[1754796452932,0.75773253,812.47,810.5,0.976]
[1754796453132,0.75773253,812.46,810.5,0.976]
[1754796453337,0.75773253,812.45,810.5,0.976]
[1754796453536,0.75773253,812.44,810.5,0.976]
[1754796453734,0.82779354,812.81,810.5,0.976]
[1754796454033,0.76513739,812.8,810.5,0.976]
[1754796454238,0.76513739,812.79,810.5,0.976]
[1754796454434,0.76513739,812.78,810.5,0.976]
[1754796454638,0.76513739,812.77,810.5,0.976]
[1754796454838,0.76513739,812.76,810.5,0.976]
[1754796455137,0.76513739,812.75,810.5,0.976]
[1754796455439,0.76513739,812.74,810.5,0.976]
[1754796455634,0.76513739,812.73,810.5,0.976]
[1754796455839,0.76513739,812.72,810.5,0.976]
[1754796456137,2.78268353,814.17,810.5,0.976]
[1754796456138,0.76513739,812.71,810.5,0.976]
[1754796456337,0.76513739,812.7,810.5,0.976]
[1754796456539,0.76513739,812.69,810.5,0.976]
[1754796456834,0.82779354,813.11,810.5,0.976]
[1754796457043,0.82779354,813.07,810.6,1.63438269]
[1754796457339,0.76471164,813.06,810.7,1.63438269]
[1754796457539,0.76471164,813.05,810.54,1.63438269]
[1754796457740,0.76471164,813.05,810.5,0.976]
[1754796457741,0.82779354,813.5,810.55,0.91751251]
[1754796457938,0.7645924,813.49,810.56,0.91751251]
[1754796458136,0.7645924,813.48,810.57,0.91751251]
[1754796458335,0.7645924,813.47,810.58,0.91751251]
[1754796458638,0.7645924,813.46,810.59,0.91751251]
[1754796458836,0.7645924,813.45,810.6,0.91751251]
[1754796459139,0.7645924,813.44,810.92,1.63438269]
[1754796459341,0.82779354,813.9,811.08,1.63438269]
[1754796459636,0.76463438,813.89,811.1,1.63438269]
[1754796459835,0.76463438,813.88,811.1,1.63438269]
[1754796460039,0.76463438,813.87,811.09,1.63438269]
[1754796460241,0.76463438,813.86,811.18,1.63438269]
[1754796460438,0.76463438,813.85,811.07,1.63438269]
[1754796460642,0.76463438,813.84,811.08,0.91717724]
[1754796460839,0.76463438,813.84,811.07,1.63438269]
[1754796460840,0.21430485,813.2,811.09,2.55155993]
[1754796461036,0.21430485,813.2,811.1,0.91717724]
[1754796461237,0.21430485,813.2,811.25,1.63438269]
[1754796461442,0.21430485,813.2,811.27,1.63438269]
[1754796461741,0.21430485,813.2,811.45,1.63438269]
[1754796462446,0.82779354,814.29,811.53,1.63438269]
[1754796462743,0.21421514,813.25,811.74,1.63438269]
[1754796463042,0.21421514,813.25,810.5,0.976]
[1754796463043,0.82779354,814.3,811.75,1.63438269]
[1754796463247,0.21418943,813.32,811.76,1.63438269]
[1754796463443,1.66961012,814.63,810.73,3.85178554]
[1754796463444,0.82779354,814.33,811.71,1.63438269]
[1754796463646,0.76457046,814.32,811.83,1.63438269]
[1754796463948,0.21417691,813.37,811.71,1.63438269]
[1754796464144,1.66961012,814.88,810.73,3.85178554]
[1754796464145,0.82779354,814.41,811.67,1.63438269]
[1754796464444,0.21418548,813.7,811.77,1.63438269]
[1754796464647,0.21418548,813.7,811.76,1.63438269]
[1754796465045,0.21418548,813.7,811.75,1.63438269]
[1754796465244,0.21418548,813.7,811.76,1.63438269]
[1754796465449,0.21418548,813.7,811.79,1.63438269]
[1754796465846,0.21418548,813.7,811.74,1.63438269]
[1754796466148,0.21418548,813.7,811.93,1.63438269]
[1754796466544,0.21418548,813.7,811.91,1.63438269]
[1754796466849,0.21418548,813.7,811.75,1.63438269]
[1754796467049,0.21418548,813.7,811.79,1.63438269]
[1754796467246,0.21418548,813.7,811.81,1.63438269]
[1754796467450,0.21418548,813.7,811.82,0.91475421]
[1754796467646,0.21418548,813.7,811.83,0.91475421]
[1754796467850,0.21418548,813.7,811.84,0.91475421]
[1754796468149,0.21418548,813.7,811.85,0.91475421]
[1754796468451,0.21418548,813.7,811.86,0.91475421]
[1754796468651,0.21418548,813.7,811.87,0.91475421]
[1754796468852,0.21418548,813.7,811.88,0.91475421]
[1754796469150,0.21418548,813.7,811.89,0.91475421]
[1754796469349,0.21418548,813.7,812.04,1.63438269]